fUST/lending_fUST_20251004
["ID","MTS","AMOUNT","RATE_DAILY","PERIOD"]
[389008517,1759560663219,-768.72,0.00022465,3]
[389008519,1759560663229,-500.0,0.00022465,3]
[389008521,1759560663239,-500.0,0.00022465,3]
[389008523,1759560663248,-500.0,0.00022465,3]
[389008525,1759560663258,-1057.87,0.00022465,3]
[389008527,1759560663268,-500.0,0.00022465,3]
[389008529,1759560663278,-738.16,0.00022465,3]
[389008531,1759560663287,-500.0,0.00022465,3]
[389008533,1759560663296,-500.0,0.00022465,3]
[389008535,1759560663306,-636.08,0.00022465,3]
[389008537,1759560663315,-1408.29,0.00022465,3]
[389008539,1759560663324,-500.0,0.00022465,3]
[389008541,1759560663334,-500.0,0.00022465,3]
[389008543,1759560663344,-175.71210209,0.00022465,3]
[389008545,1759560663354,-500.0,0.00022465,3]
[389008546,1759560663364,-1171.53,0.00022465,3]
[389008548,1759560663374,-500.0,0.00022465,3]
[389008550,1759560663385,-500.0,0.00022465,3]
[389008552,1759560663395,-410.76896522,0.00022465,3]
[389008555,1759560663405,-2461.76,0.00022465,3]
[389008557,1759560663415,-441.82596915,0.00022465,3]
[389008559,1759560663425,-1079.04,0.00022465,3]
[389008566,1759560663483,-500.0,0.00022465,3]
[389008568,1759560663493,-500.0,0.00022465,3]
[389008570,1759560663503,-746.78,0.00022465,3]
[389008572,1759560663514,-500.0,0.00022465,3]
[389008574,1759560663523,-500.0,0.00022465,3]
[389008576,1759560663532,-500.0,0.00022465,3]
[389008578,1759560663542,-500.0,0.00022465,3]
[389008580,1759560663552,-1291.71,0.00022465,3]
[389008582,1759560663561,-828.76,0.00022465,3]
[389008584,1759560663571,-500.0,0.00022465,3]
[389008586,1759560663581,-500.0,0.00022465,3]
[389008588,1759560663591,-1937.867568,0.00022465,2]
[389008590,1759560663601,-1613.58,0.00022465,3]
[389008592,1759560663611,-500.0,0.00022465,3]
[389008594,1759560663621,-5365.04,0.00022465,3]
[389008596,1759560663630,-500.0,0.00022465,2]
[389008598,1759560663641,-548.47,0.00022465,3]
[389008600,1759560663650,-7286.14,0.00022465,3]
[389008602,1759560663659,-500.0,0.00022465,3]
[389008604,1759560663668,-524.94432805,0.00022465,3]
[389008606,1759560663677,-1253.24,0.00022465,3]
[389008608,1759560663687,-500.0,0.00022465,3]
[389008610,1759560663696,-500.0,0.00022465,3]
[389008612,1759560663706,-2494.76,0.00022465,3]
[389008613,1759560663715,-603.06940771,0.00022465,3]
[389008614,1759560663726,-500.0,0.00022465,3]
[389008615,1759560663735,-565.62,0.00022465,3]
[389008616,1759560663745,-976.86,0.00022465,3]
[389008617,1759560663755,-605.07,0.00022465,3]
[389008618,1759560663764,-238.07307393,0.00022465,3]
[389008619,1759560663774,-500.0,0.00022465,3]
[389008620,1759560663783,-500.0,0.00022465,3]
[389008621,1759560663793,-500.0,0.00022465,3]
[389008622,1759560663804,-500.0,0.00022465,3]
[389008623,1759560663814,-500.0,0.00022465,3]
[389008624,1759560663823,-4450.87,0.00022465,3]
[389008625,1759560663833,-500.0,0.00022465,3]
[389008626,1759560663843,-500.0,0.00022465,3]
[389008627,1759560663852,-2698.6,0.00022465,3]
[389008628,1759560663862,-1638.57,0.00022465,3]
[389008629,1759560663872,-500.0,0.00022465,3]
[389008630,1759560663881,-500.0,0.00022465,3]
[389008631,1759560663892,-929.92,0.00022465,3]
[389008632,1759560663901,-155.78247783,0.00022465,3]
[389008633,1759560663912,-10499.07,0.00022465,3]
[389008634,1759560663921,-500.0,0.00022465,3]
[389008635,1759560663931,-500.0,0.00022465,3]
[389008636,1759560663940,-500.0,0.00022465,3]
[389008637,1759560663949,-1451.39,0.00022465,3]
[389008638,1759560663959,-1491.93,0.00022465,3]
[389008639,1759560663968,-500.0,0.00022465,3]
[389008640,1759560663981,-1445.66,0.00022465,3]
[389008641,1759560663991,-3737.77,0.00022465,3]
[389008642,1759560664001,-500.0,0.00022465,3]
[389008643,1759560664011,-178.54979957,0.00022465,3]
[389008644,1759560664020,-500.0,0.00022465,3]
[389008645,1759560664030,-346.33295774,0.00022465,3]
[389008646,1759560664039,-500.0,0.00022465,3]
[389008647,1759560664048,-500.0,0.00022465,3]
[389008649,1759560664058,-500.0,0.00022465,3]
[389008651,1759560664068,-500.0,0.00022465,3]
[389008653,1759560664078,-500.0,0.00022465,3]
[389008655,1759560664088,-500.0,0.00022465,3]
[389008657,1759560664097,-4487.28,0.00022465,3]
[389008659,1759560664107,-500.0,0.00022465,3]
[389008661,1759560664116,-715.3,0.00022465,3]
[389008663,1759560664126,-500.0,0.00022465,3]
[389008665,1759560664135,-363.92080281,0.00022465,3]
[389008667,1759560664145,-1491.5,0.00022465,3]
[389008669,1759560664154,-612.81,0.00022465,3]
[389008671,1759560664164,-500.0,0.00022465,3]
[389008673,1759560664173,-1339.05,0.00022465,3]
[389008675,1759560664182,-500.0,0.00022465,3]
[389008676,1759560664191,-422.56950131,0.00022465,3]
[389008678,1759560664200,-987.8,0.00022465,3]
[389008680,1759560664209,-519.61,0.00022465,3]
[389008682,1759560664218,-2965.9,0.00022465,3]
[389008685,1759560664228,-500.0,0.00022465,3]
[389008687,1759560664238,-1142.03,0.00022465,3]
[389008689,1759560664247,-1583.31,0.00022465,3]
[389008690,1759560664257,-615.21,0.00022465,3]
[389008692,1759560664267,-500.0,0.00022465,3]
[389008694,1759560664277,-500.0,0.00022465,3]
[389008697,1759560664287,-500.0,0.00022465,3]
[389008698,1759560664297,-500.0,0.00022465,3]
[389008700,1759560664306,-1043.17,0.00022465,3]
[389008702,1759560664317,-500.0,0.00022465,3]
[389008704,1759560664327,-785.24,0.00022465,3]
[389008706,1759560664337,-1390.35,0.00022465,3]
[389008708,1759560664346,-500.0,0.00022465,3]
[389008710,1759560664355,-1271.14,0.00022465,3]
[389008712,1759560664364,-770.11,0.00022465,3]
[389008714,1759560664374,-373.44126908,0.00022465,3]
[389008716,1759560664383,-1991.57,0.00022465,3]
[389008718,1759560664393,-1025.62,0.00022465,3]
[389008720,1759560664403,-500.0,0.00022465,3]
[389008722,1759560664412,-3622.43,0.00022465,3]
[389008724,1759560664421,-2023.13,0.00022465,3]
[389008726,1759560664431,-500.0,0.00022465,3]
[389008728,1759560664441,-500.0,0.00022465,3]
[389008730,1759560664451,-500.0,0.00022465,3]
[389008732,1759560664459,-500.0,0.00022465,3]
[389008734,1759560664469,-500.0,0.00022465,3]
[389008736,1759560664479,-6461.22,0.00022465,3]
[389008738,1759560664488,-500.0,0.00022465,3]
[389008740,1759560664497,-500.0,0.00022465,3]
[389008742,1759560664506,-500.0,0.00022465,3]
[389008744,1759560664516,-500.0,0.00022465,3]
[389008746,1759560664525,-500.0,0.00022465,3]
[389008748,1759560664533,-1876.49,0.00022465,3]
[389008750,1759560664542,-500.0,0.00022465,3]
[389008752,1759560664551,-505.62,0.00022465,3]
[389008754,1759560664561,-728.97,0.00022465,3]
[389008756,1759560664570,-500.0,0.00022465,3]
[389008758,1759560664580,-1834.46,0.00022465,3]
[389008760,1759560664589,-500.0,0.00022465,3]
[389008762,1759560664598,-3348.94,0.00022465,3]
[389008764,1759560664607,-500.0,0.00022465,3]
[389008766,1759560664616,-761.41,0.00022465,3]
[389008768,1759560664625,-500.0,0.00022465,3]
[389008770,1759560664635,-500.0,0.00022465,3]
[389008772,1759560664644,-500.0,0.00022465,2]
[389008774,1759560664654,-5019.66,0.00022465,3]
[389008776,1759560664663,-500.0,0.00022465,3]
[389008778,1759560664672,-1000.0,0.000225,5]
[389008780,1759560664681,-500.44687535,0.00022521,2]
[389008782,1759560664690,-1000.0,0.00022521,2]
[389008784,1759560664699,-1000.0,0.00022521,2]
[389008786,1759560664709,-1000.0,0.00022521,2]
[389008787,1759560664718,-1000.0,0.00022521,2]
[389008789,1759560664727,-1000.0,0.00022521,2]
[389008791,1759560664737,-1000.0,0.00022521,2]
[389008794,1759560664747,-501.22749793,0.00022521,2]
[389008795,1759560664757,-1000.0,0.00022521,2]
[389008797,1759560664766,-1000.0,0.00022521,2]
[389008799,1759560664776,-1000.0,0.00022521,2]
[389008801,1759560664786,-1000.0,0.00022521,2]
[389008803,1759560664795,-1000.0,0.00022521,2]
[389008805,1759560664804,-1000.0,0.00022521,2]
[389008807,1759560664813,-1122.57948836,0.00022521,2]
[389008809,1759560664823,-1000.0,0.00022521,2]
[389008811,1759560664831,-500.37899681,0.00022521,2]
[389008813,1759560664840,-1000.0,0.00022521,2]
[389008815,1759560664849,-1000.0,0.00022521,2]
[389008817,1759560664857,-1000.0,0.00022521,2]
[389008819,1759560664866,-522.55996504,0.00022521,2]
[389008821,1759560664874,-1000.0,0.00022521,2]
[389008823,1759560664883,-1000.0,0.00022521,2]
[389008825,1759560664894,-1000.0,0.00022521,2]
[389008827,1759560664902,-1000.0,0.00022521,2]
[389008829,1759560664910,-1000.0,0.00022521,2]
[389008831,1759560664919,-1000.0,0.00022521,2]
[389008833,1759560664927,-716.71966271,0.00022521,2]
[389008835,1759560664936,-1000.0,0.00022521,2]
[389008837,1759560664946,-1000.0,0.00022521,2]
[389008839,1759560664955,-1000.0,0.00022521,2]
[389008841,1759560664964,-1000.0,0.00022521,2]
[389008843,1759560664976,-1000.0,0.00022521,2]
[389008845,1759560664986,-1000.0,0.00022521,2]
[389008847,1759560664996,-1099.08558948,0.00022521,2]
[389008849,1759560665008,-1000.0,0.00022521,2]
[389008851,1759560665020,-413.42238669,0.00022521,2]
[389008852,1759560665028,-1000.0,0.00022521,2]
[389008854,1759560665038,-1000.0,0.00022521,2]
[389008856,1759560665048,-1000.0,0.00022521,2]
[389008858,1759560665063,-241.82615571,0.00022521,2]
[389008860,1759560665072,-1084.62874235,0.00022521,2]
[389008862,1759560665080,-1000.0,0.00022521,2]
[389008863,1759560665089,-1000.0,0.00022521,2]
[389008865,1759560665099,-673.2076754,0.00022521,2]
[389008867,1759560665108,-151.0,0.0002254,3]
[389008869,1759560665116,-151.0,0.0002254,2]
[389008871,1759560665125,-151.0,0.0002254,2]
[389008873,1759560665135,-151.0,0.0002254,2]
[389008875,1759560665144,-500.0,0.0002254,2]
[389008877,1759560665153,-500.0,0.0002254,2]
[389008879,1759560665162,-151.0,0.0002254,2]
[389008881,1759560665171,-151.0,0.0002254,2]
[389008883,1759560665181,-151.0,0.0002254,2]
[389008885,1759560665190,-151.0,0.0002254,2]
[389008887,1759560665200,-151.68042435,0.0002254,2]
[389008889,1759560665209,-500.0,0.0002254,2]
[389008891,1759560665218,-151.0,0.0002254,2]
[389008893,1759560665226,-1003.0,0.0002254,2]
[389008895,1759560665235,-500.0,0.0002254,2]
[389008897,1759560665245,-500.0,0.0002254,2]
[389008899,1759560665254,-3948.82253817,0.00022593,2]
[389008901,1759560665263,-2868.0,0.00022604,2]
[389008903,1759560665272,-260.0,0.00022612,2]
[389008905,1759560665281,-343.26556894,0.00022721,2]
[389008907,1759560665290,-1000.0,0.00022721,2]
[389008909,1759560665298,-1000.0,0.00022721,2]
[389008911,1759560665308,-501.23522874,0.00022721,2]
[389008913,1759560665317,-300.0,0.00022721,2]
[389008915,1759560665328,-500.0,0.00022739,3]
[389008917,1759560665337,-188.78798777,0.00022739,3]
[389008919,1759560665347,-646.0,0.00022739,3]
[389008921,1759560665356,-500.0,0.00022739,3]
[389008923,1759560665366,-500.0,0.00022739,3]
[389008925,1759560665375,-599.69,0.00022739,3]
[389008927,1759560665384,-562.79987064,0.00022739,3]
[389008929,1759560665394,-547.21,0.00022739,3]
[389008931,1759560665403,-1842.46,0.00022739,3]
[389008933,1759560665412,-500.0,0.00022739,3]
[389008935,1759560665422,-502.66168098,0.00022739,3]
[389008936,1759560665431,-500.0,0.00022739,3]
[389008938,1759560665440,-529.20798191,0.00022739,3]
[389008940,1759560665449,-500.0,0.00022739,3]
[389008942,1759560665459,-500.0,0.00022739,3]
[389008945,1759560665468,-1374.26,0.00022739,3]
[389008946,1759560665477,-500.0,0.00022739,3]
[389008949,1759560665487,-500.0,0.00022739,3]
[389008951,1759560665496,-3343.34,0.00022739,3]
[389008953,1759560665506,-500.0,0.00022739,3]
[389008954,1759560665516,-507.40357399,0.00022739,3]
[389008956,1759560665526,-500.0,0.00022739,3]
[389008958,1759560665535,-500.0,0.00022739,3]
[389008960,1759560665544,-500.0,0.00022739,3]
[389008962,1759560665555,-500.0,0.00022739,3]
[389008964,1759560665564,-631.64,0.00022739,3]
[389008966,1759560665573,-500.0,0.00022739,3]
[389008968,1759560665583,-500.0,0.00022739,3]
[389008970,1759560665592,-777.68,0.00022739,3]
[389008973,1759560665603,-500.0,0.00022739,3]
[389008975,1759560665612,-500.0,0.00022739,3]
[389008977,1759560665622,-997.49,0.00022739,3]
[389008979,1759560665631,-835.29,0.00022739,3]
[389008980,1759560665640,-500.0,0.00022739,3]
[389008983,1759560665650,-500.0,0.00022739,3]
[389008985,1759560665661,-376.06112681,0.00022739,3]
[389008987,1759560665670,-500.0,0.00022739,3]
[389008989,1759560665680,-1053.37,0.00022739,3]
[389008991,1759560665689,-477.22318298,0.00022739,3]
[389008993,1759560665700,-353.26456486,0.00022739,3]
[389008995,1759560665709,-500.0,0.00022739,3]
[389008996,1759560665719,-920.7,0.00022739,3]
[389008999,1759560665729,-1449.67,0.00022739,3]
[389009001,1759560665738,-425.08516569,0.00022739,3]
[389009003,1759560665748,-500.0,0.00022739,3]
[389009005,1759560665758,-1075.68,0.00022739,3]
[389009007,1759560665768,-732.66,0.00022739,3]
[389009008,1759560665778,-1089.69,0.00022739,3]
[389009011,1759560665788,-500.0,0.00022739,3]
[389009013,1759560665797,-500.0,0.00022739,3]
[389009015,1759560665808,-500.0,0.00022739,3]
[389009017,1759560665819,-500.0,0.00022739,3]
[389009019,1759560665831,-500.0,0.00022739,3]
[389009021,1759560665840,-1450.42,0.00022739,3]
[389009023,1759560665849,-500.0,0.00022739,3]
[389009025,1759560665859,-500.0,0.00022739,3]
[389009027,1759560665870,-500.0,0.00022739,3]
[389009029,1759560665880,-292.05299158,0.00022739,3]
[389009031,1759560665889,-500.0,0.00022739,3]
[389009033,1759560665899,-533.72,0.00022739,3]
[389009035,1759560665908,-500.0,0.00022739,3]
[389009037,1759560665918,-500.0,0.00022739,3]
[389009039,1759560665928,-500.0,0.00022739,3]
[389009041,1759560665937,-500.0,0.00022739,3]
[389009043,1759560665948,-501.27,0.00022739,3]
[389009045,1759560665957,-500.0,0.00022739,3]
[389009047,1759560665967,-500.0,0.00022739,3]
[389009049,1759560665984,-500.0,0.00022739,3]
[389009051,1759560665997,-829.1,0.00022739,3]
[389009053,1759560666006,-500.0,0.00022739,3]
[389009055,1759560666016,-500.0,0.00022739,3]
[389009057,1759560666026,-500.0,0.00022739,3]
[389009059,1759560666036,-568.37,0.00022739,3]
[389009061,1759560666046,-500.0,0.00022739,3]
[389009064,1759560666060,-500.0,0.00022739,3]
[389009066,1759560666071,-500.0,0.00022739,3]
[389009068,1759560666081,-462.30280547,0.00022739,3]
[389009070,1759560666090,-500.0,0.00022739,3]
[389009072,1759560666100,-500.0,0.00022739,3]
[389009074,1759560666110,-463.24346278,0.00022739,3]
[389009075,1759560666121,-500.0,0.00022739,3]
[389009078,1759560666131,-1768.05,0.00022739,3]
[389009080,1759560666141,-697.56,0.00022739,3]
[389009082,1759560666150,-500.0,0.00022739,3]
[389009083,1759560666160,-3135.84,0.00022739,3]
[389009086,1759560666170,-748.14,0.00022739,3]
[389009088,1759560666180,-943.9,0.00022739,3]
[389009090,1759560666190,-500.0,0.00022739,3]
[389009092,1759560666201,-986.28,0.00022739,3]
[389009094,1759560666210,-500.0,0.00022739,3]
[389009095,1759560666220,-500.0,0.00022739,3]
[389009098,1759560666231,-1083.34,0.00022739,3]
[389009099,1759560666240,-500.0,0.00022739,3]
[389009102,1759560666250,-500.0,0.00022739,3]
[389009104,1759560666259,-500.0,0.00022739,3]
[389009106,1759560666269,-500.0,0.00022739,3]
[389009108,1759560666278,-500.0,0.00022739,3]
[389009110,1759560666288,-1225.94,0.00022739,3]
[389009112,1759560666297,-563.08,0.00022739,3]
[389009114,1759560666307,-500.0,0.00022739,3]
[389009116,1759560666317,-500.0,0.00022739,3]
[389009118,1759560666326,-249.65226931,0.00022739,3]
[389009120,1759560666335,-500.0,0.00022739,3]
[389009122,1759560666345,-707.3,0.00022739,3]
[389009124,1759560666354,-500.0,0.00022739,3]
[389009126,1759560666364,-1030.77,0.00022739,3]
[389009128,1759560666374,-1690.12,0.00022739,3]
[389009130,1759560666383,-500.0,0.00022739,3]
[389009132,1759560666393,-500.0,0.00022739,3]
[389009134,1759560666402,-656.41,0.00022739,3]
[389009136,1759560666411,-1321.92,0.00022739,3]
[389009138,1759560666421,-500.0,0.00022739,3]
[389009140,1759560666430,-500.0,0.00022739,3]
[389009141,1759560666439,-500.0,0.00022739,3]
[389009142,1759560666448,-500.0,0.00022739,3]
[389009143,1759560666458,-500.0,0.00022739,3]
[389009144,1759560666468,-751.87,0.00022739,3]
[389009145,1759560666477,-1067.72,0.00022739,3]
[389009146,1759560666488,-500.0,0.00022739,3]
[389009147,1759560666497,-500.0,0.00022739,3]
[389009148,1759560666506,-500.0,0.00022739,3]
[389009149,1759560666516,-500.0,0.00022739,3]
[389009150,1759560666525,-603.08,0.00022739,3]
[389009151,1759560666535,-517.79,0.00022739,3]
[389009153,1759560666545,-500.0,0.00022739,3]
[389009155,1759560666557,-705.27,0.00022739,3]
[389009157,1759560666566,-1086.95,0.00022739,3]
[389009159,1759560666577,-500.0,0.00022739,3]
[389009161,1759560666587,-503.11,0.00022739,3]
[389009163,1759560666597,-500.0,0.00022739,3]
[389009165,1759560666606,-500.0,0.00022739,3]
[389009168,1759560666616,-500.0,0.00022739,3]
[389009169,1759560666625,-500.0,0.00022739,3]
[389009172,1759560666634,-500.0,0.00022739,3]
[389009173,1759560666644,-500.0,0.00022739,3]
[389009175,1759560666654,-500.0,0.00022739,3]
[389009178,1759560666663,-423.13192803,0.00022739,3]
[389009180,1759560666673,-500.0,0.00022739,3]
[389009182,1759560666683,-500.0,0.00022739,3]
[389009184,1759560666693,-3063.97,0.00022739,3]
[389009186,1759560666703,-500.0,0.00022739,3]
[389009188,1759560666712,-500.0,0.00022739,3]
[389009190,1759560666721,-500.0,0.00022739,3]
[389009192,1759560666731,-500.0,0.00022739,3]
[389009194,1759560666741,-500.0,0.00022739,3]
[389009196,1759560666751,-2015.87,0.00022739,3]
[389009198,1759560666760,-882.11,0.00022739,3]
[389009200,1759560666770,-500.0,0.00022739,3]
[389009202,1759560666780,-1592.96,0.00022739,3]
[389009204,1759560666789,-500.0,0.00022739,3]
[389009206,1759560666799,-500.0,0.00022739,3]
[389009208,1759560666809,-902.37,0.00022739,3]
[389009210,1759560666818,-500.0,0.00022739,3]
[389009212,1759560666828,-500.0,0.00022739,2]
[389009214,1759560666838,-545.55,0.00022739,3]
[389009216,1759560666847,-500.0,0.00022739,3]
[389009218,1759560666857,-1555.66,0.00022739,3]
[389009220,1759560666867,-500.0,0.00022739,3]
[389009223,1759560666877,-500.0,0.00022739,3]
[389009225,1759560666887,-562.18,0.00022739,3]
[389009227,1759560666897,-500.0,0.00022739,3]
[389009228,1759560666906,-539.88,0.00022739,3]
[389009231,1759560666916,-500.0,0.00022739,3]
[389009233,1759560666925,-500.0,0.00022739,3]
[389009235,1759560666935,-649.9,0.00022739,3]
[389009237,1759560666944,-500.0,0.00022739,3]
[389009239,1759560666954,-500.0,0.00022739,3]
[389009241,1759560666963,-500.0,0.00022739,3]
[389009243,1759560666974,-1554.42,0.00022739,3]
[389009245,1759560666987,-3135.98,0.00022739,3]
[389009247,1759560666996,-2091.91,0.00022739,3]
[389009249,1759560667006,-500.0,0.00022739,3]
[389009251,1759560667016,-500.0,0.00022739,3]
[389009253,1759560667026,-500.0,0.00022739,3]
[389009255,1759560667035,-500.0,0.00022739,3]
[389009257,1759560667044,-1314.83,0.00022739,3]
[389009259,1759560667056,-863.41,0.00022739,3]
[389009261,1759560667066,-971.49,0.00022739,3]
[389009263,1759560667075,-767.34,0.00022739,3]
[389009265,1759560667085,-325.85202466,0.00022739,3]
[389009267,1759560667094,-500.0,0.00022739,3]
[389009269,1759560667103,-500.0,0.00022739,3]
[389009271,1759560667112,-500.0,0.00022739,3]
[389009273,1759560667122,-500.0,0.00022739,3]
[389009275,1759560667131,-578.55447669,0.00022739,3]
[389009277,1759560667141,-743.49,0.00022739,3]
[389009279,1759560667150,-1637.42,0.00022739,3]
[389009281,1759560667160,-365.29135492,0.00022739,3]
[389009283,1759560667169,-500.0,0.00022739,3]
[389009285,1759560667179,-1161.41,0.00022739,3]
[389009287,1759560667189,-500.0,0.00022739,3]
[389009289,1759560667198,-539.03,0.00022739,3]
[389009291,1759560667208,-500.0,0.00022739,3]
[389009293,1759560667217,-500.0,0.00022739,3]
[389009295,1759560667227,-636.6,0.00022739,3]
[389009297,1759560667237,-511.22,0.00022739,3]
[389009299,1759560667247,-1269.28,0.00022739,3]
[389009301,1759560667256,-500.0,0.00022739,3]
[389009303,1759560667265,-500.0,0.00022739,3]
[389009305,1759560667275,-500.0,0.00022739,3]
[389009308,1759560667285,-500.0,0.00022739,3]
[389009310,1759560667295,-761.57,0.00022739,3]
[389009312,1759560667304,-1168.53,0.00022739,3]
[389009314,1759560667314,-1910.56,0.00022739,3]
[389009316,1759560667323,-805.89,0.00022739,3]
[389009318,1759560667333,-500.0,0.00022739,3]
[389009320,1759560667343,-584.95,0.00022739,3]
[389009322,1759560667352,-507.8395514,0.00022739,3]
[389009324,1759560667363,-500.0,0.00022739,3]
[389009325,1759560667528,-500.0,0.00022739,3]
[389009326,1759560667539,-500.0,0.00022739,3]
[389009327,1759560667547,-500.0,0.00022739,3]
[389009328,1759560667557,-543.76,0.00022739,3]
[389009329,1759560667566,-3954.2,0.00022739,3]
[389009330,1759560667576,-500.0,0.00022739,3]
[389009331,1759560667585,-600.62,0.00022739,3]
[389009332,1759560667595,-500.0,0.00022739,3]
[389009333,1759560667604,-1029.47,0.00022739,3]
[389009334,1759560667613,-1568.4,0.00022739,3]
[389009335,1759560667622,-500.0,0.00022739,3]
[389009336,1759560667632,-500.0,0.00022739,3]
[389009337,1759560667640,-631.7,0.00022739,3]
[389009338,1759560667650,-500.0,0.00022739,3]
[389009339,1759560667659,-500.0,0.00022739,3]
[389009340,1759560667669,-500.0,0.00022739,3]
[389009341,1759560667678,-549.7,0.00022739,3]
[389009342,1759560667688,-500.0,0.00022739,3]
[389009343,1759560667697,-500.0,0.00022739,3]
[389009344,1759560667707,-500.0,0.00022739,3]
[389009345,1759560667716,-500.0,0.00022739,3]
[389009346,1759560667726,-868.91,0.00022739,3]
[389009347,1759560667736,-500.0,0.00022739,3]
[389009348,1759560667746,-500.0,0.00022739,3]
[389009349,1759560667756,-500.0,0.00022739,3]
[389009350,1759560667765,-697.24,0.00022739,3]
[389009351,1759560667775,-500.0,0.00022739,3]
[389009352,1759560667785,-500.0,0.00022739,3]
[389009353,1759560667795,-683.44,0.00022739,3]
[389009354,1759560667805,-500.0,0.00022739,3]
[389009355,1759560667815,-580.14,0.00022739,3]
[389009356,1759560667824,-500.0,0.00022739,3]
[389009357,1759560667833,-500.0,0.00022739,3]
[389009358,1759560667842,-6388.98,0.00022739,3]
[389009359,1759560667851,-500.0,0.00022739,3]
[389009360,1759560667861,-500.0,0.00022739,3]
[389009361,1759560667869,-828.82,0.00022739,3]
[389009362,1759560667879,-500.0,0.00022739,3]
[389009363,1759560667888,-522.14,0.00022739,3]
[389009364,1759560667898,-991.21,0.00022739,3]
[389009365,1759560667907,-1041.86,0.00022739,3]
[389009366,1759560667916,-1986.41,0.00022739,3]
[389009367,1759560667925,-457.53503601,0.00022739,3]
[389009368,1759560667935,-500.0,0.00022739,3]
[389009369,1759560667944,-1156.15,0.00022739,3]
[389009370,1759560667953,-674.43,0.00022739,3]
[389009372,1759560667962,-924.04,0.00022739,3]
[389009373,1759560667971,-1748.78,0.00022739,3]
[389009374,1759560667984,-581.4,0.00022739,3]
[389009375,1759560667993,-500.0,0.00022739,3]
[389009376,1759560668002,-905.44,0.00022739,3]
[389009377,1759560668011,-571.37,0.00022739,3]
[389009378,1759560668021,-653.71,0.00022739,3]
[389009379,1759560668030,-1561.34,0.00022739,3]
[389009380,1759560668040,-500.0,0.00022739,3]
[389009381,1759560668049,-500.0,0.00022739,3]
[389009382,1759560668059,-1086.89,0.00022739,3]
[389009383,1759560668068,-500.0,0.00022739,3]
[389009384,1759560668078,-1226.68,0.00022739,3]
[389009385,1759560668087,-500.0,0.00022739,3]
[389009386,1759560668097,-500.0,0.00022739,3]
[389009387,1759560668106,-917.82,0.00022739,3]
[389009388,1759560668116,-500.0,0.00022739,3]
[389009389,1759560668125,-500.0,0.00022739,3]
[389009390,1759560668135,-546.86,0.00022739,3]
[389009391,1759560668145,-1026.48,0.00022739,3]
[389009392,1759560668155,-304.56344839,0.00022739,3]
[389009393,1759560668164,-500.0,0.00022739,3]
[389009394,1759560668173,-680.39,0.00022739,3]
[389009395,1759560668182,-500.0,0.00022739,3]
[389009396,1759560668192,-2304.04,0.00022739,3]
[389009397,1759560668201,-500.0,0.00022739,3]
[389009398,1759560668211,-500.0,0.00022739,3]
[389009399,1759560668220,-500.0,0.00022739,3]
[389009400,1759560668229,-500.0,0.00022739,3]